fUST/lending_fUST_20250312
["ID","MTS","AMOUNT","RATE_DAILY","PERIOD"]
[355978240,1741757967069,-189.0,0.000173,2]
[355978241,1741757967091,-189.0,0.000173,5]
[355978242,1741757967114,-189.0,0.000173,4]
[355978243,1741757967137,-785.0,0.000173,2]
[355978247,1741758338067,-410.52568814,0.000174,5]
[355978248,1741758338096,-5666.08000084,0.000174,5]
[355978249,1741758338121,-35917.79747979,0.000174,8]
[355978250,1741758338151,-46747.94389336,0.000178,8]
[355978251,1741758338176,-1000.0,0.00017808,7]
[355978252,1741758338201,-1000.0,0.00017808,7]
[355978253,1741758338225,-1000.0,0.00017808,7]
[355978254,1741758338250,-1000.0,0.00017808,7]
[355978255,1741758338275,-1000.0,0.00017808,7]
[355978256,1741758338300,-1000.0,0.00017808,7]
[355978257,1741758338329,-1000.0,0.00017808,7]
[355978258,1741758338359,-1000.0,0.00017808,7]
[355978259,1741758338384,-1000.0,0.00017808,7]
[355978260,1741758338409,-1000.0,0.00017808,7]
[355978261,1741758338436,-1000.0,0.00017808,7]
[355978262,1741758338464,-257.65293787,0.00017808,7]
[355978263,1741758344451,-742.34706213,0.00017808,7]
[355978264,1741758344476,-1000.0,0.00017808,7]
[355978265,1741758344502,-1000.0,0.00017808,7]
[355978266,1741758344527,-1000.0,0.00017808,7]
[355978267,1741758344552,-1000.0,0.00017808,7]
[355978268,1741758344582,-1000.0,0.00017808,7]
[355978269,1741758344608,-1000.0,0.00017808,7]
[355978270,1741758344633,-1000.0,0.00017808,7]
[355978271,1741758344660,-1000.0,0.00017808,7]
[355978272,1741758344684,-1000.0,0.00017808,7]
[355978273,1741758344710,-1000.0,0.00017808,7]
[355978274,1741758344735,-1000.0,0.00017808,7]
[355978275,1741758344761,-1000.0,0.00017808,7]
[355978276,1741758344785,-1000.0,0.00017808,7]
[355978277,1741758344811,-1000.0,0.00017808,7]
[355978278,1741758344836,-1000.0,0.00017808,7]
[355978279,1741758344861,-1000.0,0.00017808,7]
[355978280,1741758344886,-1000.0,0.00017808,7]
[355978281,1741758345099,-1000.0,0.00017808,7]
[355978282,1741758345124,-1000.0,0.00017808,7]
[355978283,1741758345150,-1000.0,0.00017808,7]
[355978284,1741758345175,-1000.0,0.00017808,7]
[355978285,1741758345201,-1000.0,0.00017808,7]
[355978286,1741758345226,-1000.0,0.00017808,7]
[355978287,1741758345251,-1000.0,0.00017808,7]
[355978288,1741758345275,-1000.0,0.00017808,7]
[355978289,1741758385872,205.26284407,0.00017462,5]
[355978290,1741758441159,381.58,0.00010959,2]
[355978291,1741758448499,2833.04000042,0.00017472,5]
[355978293,1741758466833,1000.0,0.00017989,7]
[355978294,1741758467190,1000.0,0.00017989,7]
[355978295,1741758467369,1012.3112438,0.00015997,2]
[355978296,1741758467517,1000.0,0.00017989,7]
[355978297,1741758467982,1000.0,0.00017989,7]
[355978298,1741758468982,1000.0,0.00017989,7]
[355978299,1741758469342,1000.0,0.00017989,7]
[355978300,1741758469768,1000.0,0.00017989,7]
[355978301,1741758470106,1000.0,0.00017989,7]
[355978302,1741758470424,1000.0,0.00017989,7]
[355978303,1741758470746,1000.0,0.00017989,7]
[355978304,1741758471207,1000.0,0.00017989,7]
[355978305,1741758471603,1000.0,0.00017989,7]
[355978306,1741758472017,1000.0,0.00017989,7]
[355978307,1741758472550,1019.738693,0.00017989,7]
[355978308,1741758505695,205.26284406,0.00017472,5]
[355978312,1741758567157,1416.52000021,0.00017472,5]
[355978313,1741758595359,152.14978742,0.00016,120]
[355978339,1741758632199,-166.66666667,0.00016295,2]
[355978341,1741758632209,-3182.5554272,0.00016392,2]
[355978343,1741758632220,-195.6833997,0.00016395,2]
[355978345,1741758632229,-168.360005,0.00016415,2]
[355978348,1741758632239,-300.0,0.00016421,2]
[355978350,1741758632249,-24900.0,0.00016422,2]
[355978352,1741758632258,-412.89377544,0.00016998,2]
[355978960,1741758638078,-163.61,0.00016412,2]
[355978962,1741758638088,-163.61,0.00016412,2]
[355978964,1741758638098,-391.75610626,0.00016998,2]
[355978966,1741758638108,-163.61,0.00017363,2]
[355978968,1741758638118,-163.61,0.00017363,2]
[355978970,1741758638127,-152.0,0.00017366,2]
[355978972,1741758638137,-153.56263782,0.00017373,2]
[355979145,1741758640333,-255.50938948,0.00017373,2]
[355979160,1741758644053,-5242.79126275,0.00017373,2]
[355979161,1741758644064,-163.61,0.0001738,2]
[355979162,1741758644073,-163.61,0.0001738,2]
[355979163,1741758644083,-163.61,0.0001738,2]
[355979164,1741758644093,-163.61,0.0001738,2]
[355979165,1741758644103,-163.61,0.0001738,2]
[355979166,1741758644113,-163.61,0.0001739,2]
[355979167,1741758644122,-14172.37868136,0.0001739,2]
[355979168,1741758644132,-222.94515542,0.00017398,2]
[355979169,1741758644142,-1701.999998,0.000174,2]
[355979170,1741758644151,-254.51615594,0.00017462,2]
[355979171,1741758644162,-600.0,0.00017462,2]
[355979172,1741758644171,-597.34120259,0.00017473,2]
[355979173,1741758644182,-500.0,0.00017473,2]
[355979174,1741758644191,-500.0,0.00017473,2]
[355979175,1741758644201,-500.0,0.00017473,2]
[355979176,1741758644210,-500.0,0.00017473,2]
[355979177,1741758644220,-500.0,0.00017473,2]
[355979178,1741758644229,-500.0,0.00017473,2]
[355979179,1741758644239,-500.0,0.00017473,2]
[355979180,1741758644248,-500.0,0.00017473,2]
[355979181,1741758644258,-500.0,0.00017473,2]
[355979182,1741758644267,-500.0,0.00017473,2]
[355979183,1741758644277,-500.0,0.00017473,2]
[355979184,1741758644286,-500.0,0.00017473,2]
[355979185,1741758644295,-500.0,0.00017473,2]
[355979186,1741758644306,-500.0,0.00017473,2]
[355979187,1741758644315,-500.0,0.00017473,2]
[355979188,1741758644325,-500.0,0.00017473,2]
[355979189,1741758644334,-443.24963028,0.00017473,2]
[355979190,1741758644344,-500.0,0.00017473,2]
[355979191,1741758644354,-500.0,0.00017473,2]
[355979192,1741758644363,-418.01522051,0.00017473,2]
[355979193,1741758644372,-500.0,0.00017473,2]
[355979194,1741758644382,-1.37504838,0.00017473,2]
[355979195,1741758644397,-26795.5564054,0.00017473,2]
[355979226,1741758646483,-2442.2,0.00017473,2]
[355979227,1741758688346,708.2600001,0.00017504,5]
[355979228,1741758766476,10025.49402168,0.00018,3]
[355979230,1741758808030,354.13000005,0.00017972,5]
[355979231,1741758905951,5612.59684795,0.00018,3]
[355979232,1741758928485,177.06500002,0.00017989,5]
[355979234,1741759016037,730.01,0.00010959,2]
[355979235,1741759048061,177.06500002,0.00017765,5]
[355979236,1741759078911,38523.21768629,0.000178,4]
[355979237,1741759139053,365.01,0.00010959,2]
[355979238,1741759230523,10000.0,0.00019,120]
[355979239,1741759258070,8483.0,0.00012,5]
[355979240,1741759262559,182.5,0.00010959,2]
[355979243,1741759385910,547.55,0.00010959,2]
[355979298,1741759832522,-177.145947,0.00016334,2]
[355979299,1741759832533,-3359.2769341,0.00016366,2]
[355979300,1741759832542,-300.0,0.0001668,2]
[355979301,1741759832552,-298.0,0.00016681,2]
[355979302,1741759832561,-479.22501217,0.00016681,2]
[355979338,1741759838363,-1792.77498783,0.00016681,2]
[355979340,1741759838374,-402.0,0.00016681,2]
[355979342,1741759838385,-406.961,0.00016681,2]
[355979345,1741759838395,-4521.49063204,0.00017273,2]
[355979347,1741759838404,-151.0,0.000173,2]
[355979348,1741759838414,-600.0,0.00017362,2]
[355979349,1741759838424,-153.38,0.00017363,2]
[355979350,1741759838433,-153.38,0.00017363,2]
[355979351,1741759838443,-153.38,0.00017363,2]
[355979352,1741759838452,-153.38,0.00017363,2]
[355979353,1741759838462,-153.38,0.00017363,2]
[355979355,1741759838472,-153.38,0.00017363,2]
[355979357,1741759838482,-153.38,0.00017363,2]
[355979359,1741759838491,-153.38,0.00017363,2]
[355979361,1741759838501,-222000.0,0.00017373,2]
[355979362,1741759838511,-500.0,0.00017373,2]
[355979363,1741759838520,-500.0,0.00017373,2]
[355979364,1741759838530,-500.0,0.00017373,2]
[355979365,1741759838540,-500.0,0.00017373,2]
[355979366,1741759838550,-509.35314078,0.00017373,2]
[355979367,1741759838559,-500.0,0.00017373,2]
[355979368,1741759838569,-500.0,0.00017373,2]
[355979369,1741759838578,-500.0,0.00017373,2]
[355979370,1741759838589,-500.0,0.00017373,2]
[355979371,1741759838599,-500.0,0.00017373,2]
[355979372,1741759838608,-500.0,0.00017373,2]
[355979373,1741759838618,-500.0,0.00017373,2]
[355979374,1741759838628,-500.0,0.00017373,2]
[355979375,1741759838638,-500.0,0.00017373,2]
[355979376,1741759838647,-617.75880392,0.00017373,2]
[355979377,1741759838656,-500.0,0.00017373,2]
[355979378,1741759838666,-229.63782945,0.00017373,2]
[355979379,1741759838678,-270.36217055,0.00017373,2]
[355979380,1741759838687,-500.0,0.00017373,2]
[355979381,1741759838696,-43.2648787,0.00017417,2]
[355979382,1741759838708,-578.9351213,0.00017417,2]
[355979383,1741759838718,-4521.490632,0.0001743,2]
[355979384,1741759838727,-645.2214,0.00017472,2]
[355979385,1741759838737,-150.695,0.00017512,2]
[355979386,1741759838747,-250.0,0.0001752,2]
[355979387,1741759838756,-235.172,0.0001752,2]
[355979388,1741759838765,-254.529,0.0001752,2]
[355979389,1741759838775,-280.946,0.0001752,2]
[355979390,1741759838786,-97.7053821,0.0001752,2]
[355979718,1741759843612,-1495.33552959,0.00017273,2]
[355979720,1741759843622,-96.8736179,0.0001752,2]
[355979722,1741759843632,-562.654,0.0001752,2]
[355979724,1741759843641,-150.0,0.0001752,2]
[355979726,1741759843651,-1920.0,0.0001752,2]
[355979728,1741759843660,-669.0945918,0.00017527,2]
[355979730,1741759843670,-693.8510917,0.00017582,2]
[355979732,1741759843679,-4521.490632,0.00017587,2]
[355979734,1741759843689,-500.0,0.00017631,2]
[355979736,1741759843699,-719.52358209,0.00017637,2]
[355979738,1741759843708,-193.5816553,0.0001765,2]
[355979740,1741759843718,-1069.54511676,0.00017692,2]
[355979742,1741759843727,-22082.4488582,0.00017735,7]
[355979846,1741759846654,-21796.999917,0.00017735,7]
[355979869,1741760598242,257.0,0.00019,120]
[355983416,1741761032597,-1308.4185884,0.00017173,2]
[355983418,1741761032607,-1842.08151099,0.00017173,2]
[355983420,1741761032617,-300.0,0.00017272,2]
[355983421,1741761032626,-157222.69098224,0.00017273,2]
[355983684,1741761045158,-64777.30901776,0.00017273,2]
[355983686,1741761045167,-550.8692196,0.00017273,2]
[355983688,1741761045177,-500.0,0.00017273,2]
[355983690,1741761045186,-500.0,0.00017273,2]
[355983692,1741761045197,-3359.83685822,0.00017273,2]
[355983694,1741761045211,-9070.22505793,0.00017273,2]
[355984288,1741761145766,221.40418685,0.000175,5]
[355984645,1741761208368,16260.07758622,0.00017343,5]
[355984969,1741761329911,8130.03879312,0.00017343,5]
[355985222,1741761447722,4065.01939656,0.00017343,5]
[355985393,1741761569131,2032.50969828,0.000175,5]
[355985422,1741761688905,1016.25484914,0.00017486,5]
[355985437,1741761808735,508.12742457,0.00017343,5]
[355985454,1741761928642,254.06371228,0.000175,5]
[355985482,1741762048318,254.06371228,0.00017343,5]
[355985491,1741762071763,10000.0,0.0001899,120]
[355985493,1741762085077,10000.0,0.00017,10]
[355985507,1741762113612,8700.0,0.0001899,120]
[355985562,1741762232061,-4449.9539905,0.00016246,2]
[355985563,1741762232071,-725.18346002,0.00017026,2]
[355985564,1741762232080,-300.0,0.00017072,2]
[355985565,1741762232089,-1473.6652088,0.00017073,2]
[355985566,1741762232099,-1243.8296069,0.00017073,2]
[355985567,1741762232108,-373.88034626,0.00017172,2]
[355985568,1741762232118,-315.15640674,0.00017172,2]
[355985569,1741762232127,-5214.9283324,0.00017172,2]
[355985570,1741762232136,-64560.95161652,0.00017173,2]
[355985615,1741762239999,-285.47254756,0.00017173,2]
[355985616,1741762240011,-375.47989534,0.00017173,2]
[355985627,1741762243024,-7932.60664949,0.00017173,2]
[355985628,1741762243039,-4449.95399048,0.00017173,2]
[355985640,1741762281047,1002.58,0.00017,10]
[355985643,1741762528008,3294.24424454,0.00017072,5]
[355985645,1741762648265,1647.12212227,0.00017072,5]
[355985646,1741762705866,7084.93397894,0.00017072,5]
[355985652,1741762766959,823.56106113,0.00017072,5]
[355985657,1741762808714,200.0,0.00017072,5]
[355985662,1741762826037,3542.46698947,0.00017072,5]
[355985669,1741762832372,189.0,0.000175,4]
[355985687,1741762840613,200.0,0.000175,4]
[355985715,1741762855417,500.0,0.000175,7]
[355985719,1741762855845,-219.5433888,0.00016084,2]
[355985734,1741762863534,-151.0,0.00016083,2]
[355985785,1741762887989,411.78053057,0.00017072,5]
[355985832,1741762925059,-232.779583,0.00016083,2]
[355985862,1741762946320,1771.23349474,0.00017072,5]
[355985883,1741762967416,20982.0,0.00016,2]
[355985907,1741763006932,205.89026529,0.00017072,5]
[355985931,1741763040354,441.76,0.00010959,2]
[355985957,1741763065948,885.61674737,0.00017072,5]
[355985972,1741763092678,320.585101,0.00015842,2]
[355985988,1741763127247,205.89026527,0.00017072,5]
[355986007,1741763185768,442.80837368,0.00017072,5]
[355986011,1741763213409,26368.31256743,0.00017,7]
[355986012,1741763213435,31401.50113371,0.00017,7]
[355986100,1741763350557,219.5433888,0.00015892,2]
[355986114,1741763382016,311.0,0.00016083,5]
[355986143,1741763432364,-300.0,0.00016083,2]
[355986144,1741763432374,-24680.4566112,0.00016084,2]
[355986145,1741763432383,-174.812357,0.00016118,2]
[355986146,1741763432393,-263.1135048,0.00016164,2]
[355986147,1741763432403,-725.18346003,0.00016957,2]
[355986148,1741763432413,-1088.35090602,0.00016972,2]
[355986149,1741763432422,-1178.93216704,0.00016973,2]
[355986150,1741763432431,-302.0,0.00017062,2]
[355986151,1741763432440,-832.779583,0.00017062,2]
[355986152,1741763432449,-3329.41824245,0.00017072,2]
[355986153,1741763432458,-261.71624238,0.00017072,2]
[355986154,1741763432468,-220.60948472,0.00017072,2]
[355986155,1741763432477,-167.37615801,0.00017072,2]
[355986156,1741763432486,-167.37615801,0.00017072,2]
[355986157,1741763432500,-500.0,0.00017072,2]
[355986158,1741763432510,-500.0,0.00017072,2]
[355986159,1741763432519,-1525.95,0.00017072,2]
[355986160,1741763432528,-1525.95,0.00017072,2]
[355986161,1741763432538,-1525.95,0.00017072,2]
[355986162,1741763432547,-1525.95,0.00017072,2]
[355986163,1741763432556,-1525.95,0.00017072,2]
[355986164,1741763432566,-1525.95,0.00017072,2]
[355986165,1741763432575,-1525.95,0.00017072,2]
[355986166,1741763432584,-1525.95,0.00017072,2]
[355986167,1741763432593,-1525.95,0.00017072,2]
[355986168,1741763432603,-1525.95,0.00017072,2]
[355986169,1741763432612,-1525.95,0.00017072,2]
[355986170,1741763432621,-1525.95,0.00017072,2]
[355986171,1741763432631,-1525.95,0.00017072,2]
[355986172,1741763432640,-1525.95,0.00017072,2]
[355986173,1741763432649,-1525.95,0.00017072,2]
[355986174,1741763432659,-1525.95,0.00017072,2]
[355986175,1741763432668,-1525.95,0.00017072,2]
[355986176,1741763432677,-1525.95,0.00017072,2]
[355986177,1741763432687,-1525.95,0.00017072,2]
[355986178,1741763432696,-1525.95,0.00017072,2]
[355986179,1741763432705,-1525.95,0.00017072,2]
[355986180,1741763432715,-1525.95,0.00017072,2]
[355986181,1741763432724,-1525.95,0.00017072,2]
[355986182,1741763432733,-724.92640348,0.00017072,2]
[355986183,1741763432749,-801.18958151,0.00017072,2]
[355986184,1741763432758,-221.40418685,0.00017072,5]
[355986185,1741763432768,-2308.24623164,0.00017073,2]
[355986193,1741763437867,-1478.69863994,0.00017073,2]
[355986241,1741763514476,15500.0,0.00015,2]
[355986287,1741763905998,221.40418683,0.00016972,5]
[355986298,1741764100425,8873.2515486,0.0001597,2]
[355986299,1741764189390,160.292551,0.00015967,2]
[355986305,1741764375846,25248.07263,0.00016873,10]
[355986371,1741764632174,-600.0,0.00016823,2]
[355986373,1741764632183,-1736.85838067,0.00016873,2]
[355986375,1741764632193,-725.18346003,0.00016942,2]
[355986377,1741764632202,-300.0,0.00016961,2]
[355986379,1741764632211,-153.38,0.00016962,2]
[355986381,1741764632220,-17515.49081249,0.00016962,2]
[355986383,1741764632229,-153.38,0.00016963,2]
[355986385,1741764632239,-153.38,0.00016963,2]
[355986387,1741764632248,-153.38,0.00016963,2]
[355986389,1741764632257,-153.38,0.00016963,2]
[355986391,1741764632268,-153.38,0.00016963,2]
[355986393,1741764632277,-153.38,0.00016963,2]
[355986395,1741764632286,-153.38,0.00016963,2]
[355986396,1741764632305,-154.42663931,0.00016972,2]
[355986398,1741764632314,-183.20136967,0.00016972,2]
[355986400,1741764632324,-500.0,0.00016972,2]
[355986402,1741764632335,-500.0,0.00016972,2]
[355986404,1741764632347,-500.0,0.00016972,2]
[355986405,1741764632356,-562.33045018,0.00016972,2]
[355986407,1741764632365,-500.0,0.00016972,2]
[355986409,1741764632375,-500.0,0.00016972,2]
[355986411,1741764632385,-500.0,0.00016972,2]
[355986413,1741764632394,-241.79505794,0.00016972,2]
[355986415,1741764632404,-500.0,0.00016972,2]
[355986417,1741764632413,-500.0,0.00016972,2]
[355986419,1741764632424,-500.0,0.00016972,2]
[355986420,1741764632433,-48.2999767,0.00016972,2]
[355986423,1741764632445,-151.7000233,0.00016972,2]
[355986425,1741764632454,-160.57942123,0.00016973,2]
[355986442,1741764638143,-844.6108845,0.00016973,2]
[355986506,1741764927397,-259.8229593,0.00016164,2]
[355986507,1741764927421,-3342.34308351,0.00016873,2]
[355986508,1741764927448,-500.0,0.00016972,2]
[355986509,1741764927474,-500.0,0.00016972,2]
[355986510,1741764927500,-300.0,0.00016972,2]
[355986511,1741764927531,-35097.83395719,0.00016973,2]
[355986512,1741765047047,697.33346752,0.00016972,5]
[355986513,1741765174011,348.66673376,0.00016972,5]
[355986514,1741765256695,200.0,0.00017,4]
[355986515,1741765261235,8522.42,0.00017,10]
[355986516,1741765265839,-163.61,0.00016863,2]
[355986517,1741765266065,-163.61,0.00016863,2]
[355986518,1741765266088,-163.61,0.00016863,2]
[355986519,1741765266109,-163.61,0.00016863,2]
[355986520,1741765266132,-163.61,0.00016863,2]
[355986521,1741765266154,-163.61,0.00016863,2]
[355986522,1741765266177,-300.0,0.00016871,2]
[355986523,1741765266200,-500.0,0.00016872,2]
[355986524,1741765266224,-500.0,0.00016872,2]
[355986525,1741765266253,-500.0,0.00016872,2]
[355986526,1741765266274,-500.0,0.00016872,2]
[355986527,1741765266295,-75978.34,0.00016873,2]
[355986529,1741765286820,174.33336688,0.00016872,5]
[355986530,1741765317488,1570.51,0.00010959,2]
[355986531,1741765327977,1308.75,0.00010959,2]
[355986533,1741765338718,1090.63,0.00010959,2]
[355986535,1741765340996,18635.2404386,0.00015872,2]
[355986536,1741765349257,908.86,0.00010959,2]
[355986537,1741765359951,757.38,0.00010959,2]
[355986538,1741765370447,631.15,0.00010959,2]
[355986539,1741765381138,525.96,0.00010959,2]
[355986540,1741765391608,438.3,0.00010959,2]
[355986541,1741765402543,393.28,0.00010959,2]
[355986542,1741765412799,327.73,0.00010959,2]
[355986543,1741765423282,273.11,0.00010959,2]
[355986545,1741765433774,227.59,0.00010959,2]
[355986548,1741765444290,189.66,0.00010959,2]
[355986580,1741765454966,158.05,0.00010959,2]
[355986581,1741765464681,-160.292551,0.00016185,2]
[355986582,1741765464703,-834.61949744,0.00016613,2]
[355986583,1741765464725,-1189.51712012,0.00016773,2]
[355986584,1741765464747,-300.0,0.0001687,2]
[355986585,1741765464769,-500.0,0.00016871,2]
[355986586,1741765464790,-500.0,0.00016871,2]
[355986587,1741765464811,-500.0,0.00016871,2]
[355986588,1741765464833,-500.0,0.00016871,2]
[355986589,1741765464854,-500.0,0.00016871,2]
[355986590,1741765464877,-500.0,0.00016871,2]
[355986591,1741765464899,-500.0,0.00016871,2]
[355986592,1741765464921,-500.0,0.00016871,2]
[355986593,1741765464943,-500.0,0.00016871,2]
[355986594,1741765464965,-500.0,0.00016871,2]
[355986595,1741765464986,-500.0,0.00016871,2]
[355986596,1741765465008,-500.0,0.00016871,2]
[355986597,1741765465030,-500.0,0.00016871,2]
[355986598,1741765465052,-500.0,0.00016871,2]
[355986599,1741765465074,-500.0,0.00016871,2]
[355986600,1741765465096,-500.0,0.00016871,2]
[355986601,1741765465117,-500.0,0.00016871,2]
[355986602,1741765465139,-500.0,0.00016871,2]
[355986603,1741765465161,-500.0,0.00016871,2]
[355986604,1741765465182,-500.0,0.00016871,2]
[355986605,1741765465203,-500.0,0.00016871,2]
[355986606,1741765465224,-549.86573245,0.00016871,2]
[355986607,1741765465246,-500.0,0.00016871,2]
[355986608,1741765465268,-500.0,0.00016871,2]
[355986609,1741765465289,-500.0,0.00016871,2]
[355986610,1741765465311,-500.0,0.00016871,2]
[355986611,1741765465331,-500.0,0.00016871,2]
[355986612,1741765465352,-500.0,0.00016871,2]
[355986613,1741765465373,-500.0,0.00016871,2]
[355986614,1741765465394,-500.0,0.00016871,2]
[355986615,1741765465415,-500.0,0.00016871,2]
[355986616,1741765465436,-500.0,0.00016871,2]
[355986617,1741765465456,-500.0,0.00016871,2]
[355986618,1741765465477,-500.0,0.00016871,2]
[355986619,1741765465497,-500.0,0.00016871,2]
[355986620,1741765465518,-500.0,0.00016871,2]
[355986621,1741765465540,-500.0,0.00016871,2]
[355986622,1741765465561,-500.0,0.00016871,2]
[355986623,1741765465582,-500.0,0.00016871,2]
[355986624,1741765465603,-500.0,0.00016871,2]
[355986625,1741765465626,-500.0,0.00016871,2]
[355986626,1741765465648,-500.0,0.00016871,2]
[355986627,1741765465670,-500.0,0.00016871,2]
[355986628,1741765465695,-500.0,0.00016871,2]
[355986629,1741765465718,-500.0,0.00016871,2]
[355986630,1741765465739,-500.0,0.00016871,2]
[355986631,1741765465760,-500.0,0.00016871,2]
[355986632,1741765465781,-500.0,0.00016871,2]
[355986633,1741765465802,-500.0,0.00016871,2]
[355986634,1741765465824,-500.0,0.00016871,2]
[355986635,1741765465846,-500.0,0.00016871,2]
[355986636,1741765465868,-500.0,0.00016871,2]
[355986637,1741765465889,-500.0,0.00016871,2]
[355986638,1741765465911,-250.0,0.00016871,2]
[355986639,1741765465932,-500.0,0.00016871,2]
[355986640,1741765465955,-500.0,0.00016871,2]
[355986641,1741765465977,-500.0,0.00016871,2]
[355986642,1741765465999,-500.0,0.00016871,2]
[355986643,1741765466020,-14679.62745008,0.00016872,2]
[355986644,1741765466096,790.29,0.00010959,2]
[355986645,1741765480858,500.0,0.00016872,2]
[355986646,1741765482115,500.0,0.00016872,2]
[355986647,1741765482451,500.0,0.00016872,2]
[355986648,1741765482498,500.0,0.00016872,2]
[355986649,1741765482554,500.0,0.00016872,2]
[355986650,1741765482613,379.98657324,0.00016872,2]
[355986661,1741765512310,10000.0,0.00015952,2]
[355986688,1741765665406,9220.28541962,0.00016021,2]
[355986714,1741765838208,-172.0258417,0.00016307,2]
[355986715,1741765838218,-254.51615594,0.00016862,2]
[355986716,1741765838227,-458.18779,0.00016862,2]
[355986717,1741765839106,-141.81221,0.00016862,2]
[355986718,1741765839115,-500.0,0.00016872,2]
[355986719,1741765839125,-500.0,0.00016872,2]
[355986720,1741765839134,-500.0,0.00016872,2]
[355986721,1741765839143,-500.0,0.00016872,2]
[355986722,1741765839152,-300.0,0.00016872,2]
[355986723,1741765839162,-34670.13701423,0.00016873,2]
[355986724,1741765839185,-812.55,0.00016873,2]
[355986774,1741765843605,-9809.02953271,0.00016873,2]
[355986775,1741765843619,-12591.94981714,0.00016873,2]
[355986776,1741765843639,-21204.80927988,0.00016873,2]
[355986792,1741765846500,-507.24876872,0.00016873,2]
[355986822,1741766154905,174.812356,0.00015934,2]
[355986831,1741766309432,158.604693,0.00015872,2]
[355986858,1741766468884,250.0,0.00015872,2]
[355986860,1741766492159,23632.1042124,0.0001587,2]
[355986957,1741767040312,2493.55742688,0.00015964,2]
[355986967,1741767040743,-500.0,0.00016064,2]
[355986968,1741767040753,-200.0,0.00016164,2]
[355986969,1741767040763,-834.61949744,0.00016607,2]
[355986970,1741767040771,-200.0,0.00016873,2]
[355986971,1741767040781,-2709.51538673,0.00017,2]
[355986972,1741767040790,-207.01035382,0.00017,2]
[355986973,1741767040800,-222.94515542,0.00017072,2]
[355986975,1741767040810,-300.0,0.00017151,2]
[355986976,1741767040819,-2272.0,0.00017152,2]
[355986977,1741767040828,-402.0,0.00017152,2]
[355986978,1741767040837,-406.961,0.00017152,2]
[355986979,1741767040846,-150.0,0.00017197,2]
[355986980,1741767040856,-150.0,0.00017197,2]
[355986981,1741767040866,-160.874,0.00017197,2]
[355986982,1741767040875,-150.0,0.00017197,2]
[355986983,1741767040884,-1920.0,0.00017197,2]
[355986984,1741767040894,-562.654,0.00017197,2]
[355986985,1741767040904,-800.0,0.00017287,2]
[355986986,1741767040914,-2955.81641329,0.00017299,2]
[355986987,1741767040924,-500.0,0.00017342,2]
[355986988,1741767040933,-319.99850814,0.00017342,2]
[355986989,1741767040943,-500.0,0.00017342,2]
[355986990,1741767040952,-500.0,0.00017342,2]
[355986991,1741767040961,-500.0,0.00017342,2]
[355986992,1741767040971,-500.0,0.00017342,2]
[355986993,1741767040980,-300.0,0.00017342,2]
[355986994,1741767040989,-500.0,0.00017342,2]
[355986995,1741767040999,-500.0,0.00017342,2]
[355986996,1741767041008,-500.0,0.00017342,2]
[355986997,1741767041017,-500.0,0.00017342,2]
[355986998,1741767041027,-500.0,0.00017342,2]
[355986999,1741767041036,-500.0,0.00017342,2]
[355987000,1741767041046,-202.25981719,0.00017342,2]
[355987001,1741767041055,-1040.66,0.00017343,2]